[Event "Titled Tuesday Blitz August 22 Early 2023"]
[White "Llanos, Guillermo"]
[Black "Stepanencu, Nicodim-Cosmin"]
[WhiteFideId "100358"]
[BlackFideId "1256220"]
[WhiteElo "2421"]
[BlackElo "2590"]
[Result "0-1"]
[Round "3"]
[TimeControl "180+1"]
[Date "2023.08.22"]
[WhiteClock "0:00:04"]
[BlackClock "0:00:05"]
[Board "134"]

1. c4 {[%clk 0:03:00]}  Nf6 {[%clk 0:02:46]} 2. Nc3 {[%clk 0:03:00]}  g6 {[%clk 0:02:41]} 3. g3 {[%clk 0:02:57]}  Bg7 {[%clk 0:02:36]} 4. Bg2 {[%clk 0:02:57]}  O-O {[%clk 0:02:37]} 5. e3 {[%clk 0:02:57]}  c5 {[%clk 0:02:36]} 6. Nge2 {[%clk 0:02:57]}  Nc6 {[%clk 0:02:36]} 7. O-O {[%clk 0:02:56]}  d6 {[%clk 0:02:35]} 8. d4 {[%clk 0:02:56]}  cxd4 {[%clk 0:02:33]} 9. exd4 {[%clk 0:02:52]}  Bd7 {[%clk 0:02:28]} 10. d5 {[%clk 0:02:50]}  Na5 {[%clk 0:02:26]} 11. b3 {[%clk 0:02:50]}  a6 {[%clk 0:02:25]} 12. Bd2 {[%clk 0:02:49]}  b5 {[%clk 0:02:25]} 13. cxb5 {[%clk 0:02:45]}  axb5 {[%clk 0:02:26]} 14. Nd4 {[%clk 0:02:28]}  b4 {[%clk 0:01:54]} 15. Nce2 {[%clk 0:02:24]}  Qb6 {[%clk 0:01:51]} 16. Rc1 {[%clk 0:01:55]}  Rfc8 {[%clk 0:01:47]} 17. Rxc8+ {[%clk 0:01:31]}  Rxc8 {[%clk 0:01:43]} 18. Bf4 {[%clk 0:01:17]}  Rc5 {[%clk 0:01:31]} 19. Nc2 {[%clk 0:01:03]}  Qb7 {[%clk 0:01:19]} 20. Ne3 {[%clk 0:01:02]}  Ng4 {[%clk 0:00:51]} 21. Nxg4 {[%clk 0:00:59]}  Bxg4 {[%clk 0:00:51]} 22. Be3 {[%clk 0:00:59]}  Qa6 {[%clk 0:00:33]} 23. f3 {[%clk 0:00:55]}  Bf5 {[%clk 0:00:33]} 24. Bxc5 {[%clk 0:00:54]}  dxc5 {[%clk 0:00:33]} 25. Re1 {[%clk 0:00:49]}  c4 {[%clk 0:00:28]} 26. bxc4 {[%clk 0:00:47]}  Nxc4 {[%clk 0:00:29]} 27. Qb3 {[%clk 0:00:40]}  Qb6+ {[%clk 0:00:24]} 28. Kh1 {[%clk 0:00:39]}  Qf2 {[%clk 0:00:23]} 29. Qxc4 {[%clk 0:00:30]}  Qxe1+ {[%clk 0:00:22]} 30. Ng1 {[%clk 0:00:30]}  Bc3 {[%clk 0:00:06]} 31. g4 {[%clk 0:00:27]}  Bb1 {[%clk 0:00:03]} 32. Qe2 {[%clk 0:00:15]}  Qxe2 {[%clk 0:00:02]} 33. Nxe2 {[%clk 0:00:15]}  Bxa2 {[%clk 0:00:03]} 34. f4 {[%clk 0:00:14]}  Bc4 {[%clk 0:00:03]} 35. Nxc3 {[%clk 0:00:11]}  bxc3 {[%clk 0:00:04]} 36. Be4 {[%clk 0:00:12]}  Bxd5 {[%clk 0:00:03]} 37. Bxd5 {[%clk 0:00:11]}  c2 {[%clk 0:00:04]} 38. Kg2 {[%clk 0:00:04]}  c1=Q {[%clk 0:00:05]} 0-1


[Site "https://www.chess.com"]

[Event "Titled Tuesday Blitz August 22 Early 2023"]
[White "Zenin, Dmitry"]
[Black "Kozin, Yuri"]
[WhiteFideId "4127897"]
[BlackFideId "4129920"]
[WhiteElo "2416"]
[BlackElo "2587"]
[Result "1-0"]
[Round "3"]
[TimeControl "180+1"]
[Date "2023.08.22"]
[WhiteClock "0:00:48"]
[BlackClock "0:00:00"]
[Board "135"]

1. d4 {[%clk 0:03:00]}  d5 {[%clk 0:03:00]} 2. c4 {[%clk 0:03:01]}  c6 {[%clk 0:03:00]} 3. cxd5 {[%clk 0:03:00]}  cxd5 {[%clk 0:03:01]} 4. Bf4 {[%clk 0:03:00]}  Nf6 {[%clk 0:03:01]} 5. Nc3 {[%clk 0:03:00]}  e6 {[%clk 0:03:01]} 6. e3 {[%clk 0:02:57]}  a6 {[%clk 0:03:00]} 7. Rc1 {[%clk 0:02:56]}  Be7 {[%clk 0:02:58]} 8. Bd3 {[%clk 0:02:55]}  O-O {[%clk 0:02:57]} 9. h3 {[%clk 0:02:55]}  Nc6 {[%clk 0:02:56]} 10. Nf3 {[%clk 0:02:55]}  Bd7 {[%clk 0:02:55]} 11. O-O {[%clk 0:02:54]}  Rc8 {[%clk 0:02:55]} 12. a3 {[%clk 0:02:51]}  Na5 {[%clk 0:02:48]} 13. Ne5 {[%clk 0:02:51]}  Nc4 {[%clk 0:02:47]} 14. Qe2 {[%clk 0:02:47]}  Bb5 {[%clk 0:02:30]} 15. Nxb5 {[%clk 0:02:43]}  axb5 {[%clk 0:02:29]} 16. a4 {[%clk 0:02:30]}  bxa4 {[%clk 0:02:24]} 17. Nxc4 {[%clk 0:02:25]}  dxc4 {[%clk 0:02:25]} 18. Bxc4 {[%clk 0:02:25]}  Qb6 {[%clk 0:02:06]} 19. Bb5 {[%clk 0:02:19]}  a3 {[%clk 0:01:54]} 20. bxa3 {[%clk 0:02:19]}  Bxa3 {[%clk 0:01:54]} 21. Rb1 {[%clk 0:02:19]}  Nd5 {[%clk 0:01:52]} 22. Bd7 {[%clk 0:02:05]}  Nc3 {[%clk 0:01:39]} 23. Rxb6 {[%clk 0:02:03]}  Nxe2+ {[%clk 0:01:39]} 24. Kh2 {[%clk 0:02:01]}  Rcd8 {[%clk 0:01:37]} 25. Rxb7 {[%clk 0:01:59]}  Nxf4 {[%clk 0:01:29]} 26. exf4 {[%clk 0:01:58]}  Bd6 {[%clk 0:01:19]} 27. g3 {[%clk 0:01:57]}  Rb8 {[%clk 0:01:18]} 28. Rfb1 {[%clk 0:01:51]}  h5 {[%clk 0:01:12]} 29. h4 {[%clk 0:01:49]}  Rxb7 {[%clk 0:01:09]} 30. Rxb7 {[%clk 0:01:48]}  Rb8 {[%clk 0:01:09]} 31. Ra7 {[%clk 0:01:47]}  g6 {[%clk 0:01:01]} 32. Kg2 {[%clk 0:01:44]}  Kf8 {[%clk 0:00:57]} 33. Bc6 {[%clk 0:01:44]}  Rc8 {[%clk 0:00:49]} 34. d5 {[%clk 0:01:41]}  Kg7 {[%clk 0:00:40]} 35. Rd7 {[%clk 0:01:31]}  Bb8 {[%clk 0:00:36]} 36. Ba4 {[%clk 0:01:02]}  Rc4 {[%clk 0:00:31]} 37. Bb3 {[%clk 0:00:56]}  Rb4 {[%clk 0:00:27]} 38. Ba2 {[%clk 0:00:56]}  Rb2 {[%clk 0:00:22]} 39. Bc4 {[%clk 0:00:52]}  Rc2 {[%clk 0:00:21]} 40. Bd3 {[%clk 0:00:50]}  Rd2 {[%clk 0:00:13]} 41. dxe6 {[%clk 0:00:50]}  Kf6 {[%clk 0:00:00]} 42. e7 {[%clk 0:00:48]} 1-0


[Site "https://www.chess.com"]

[Event "Titled Tuesday Blitz August 22 Early 2023"]
[White "Jia, Haoxiang"]
[Black "Khromkin, Andrey"]
[WhiteFideId "8602999"]
[BlackFideId "4154126"]
[WhiteElo "2583"]
[BlackElo "2416"]
[Result "1/2-1/2"]
[Round "3"]
[TimeControl "180+1"]
[Date "2023.08.22"]
[WhiteClock "0:00:15"]
[BlackClock "0:00:03"]
[Board "136"]

1. d4 {[%clk 0:02:58]}  d5 {[%clk 0:02:58]} 2. Bf4 {[%clk 0:02:58]}  c5 {[%clk 0:02:57]} 3. c3 {[%clk 0:02:52]}  Nc6 {[%clk 0:02:57]} 4. e3 {[%clk 0:02:52]}  Qb6 {[%clk 0:02:57]} 5. Qb3 {[%clk 0:02:52]}  c4 {[%clk 0:02:57]} 6. Qxb6 {[%clk 0:02:45]}  axb6 {[%clk 0:02:57]} 7. Na3 {[%clk 0:02:34]}  e5 {[%clk 0:02:56]} 8. Nb5 {[%clk 0:02:34]}  Ra5 {[%clk 0:02:53]} 9. Nc7+ {[%clk 0:02:20]}  Kd7 {[%clk 0:02:52]} 10. Nxd5 {[%clk 0:02:05]}  Rxd5 {[%clk 0:02:45]} 11. Bxc4 {[%clk 0:02:05]}  Ra5 {[%clk 0:02:43]} 12. Bg3 {[%clk 0:02:02]}  Ke8 {[%clk 0:02:35]} 13. Nf3 {[%clk 0:01:59]}  exd4 {[%clk 0:02:09]} 14. exd4 {[%clk 0:01:56]}  Be6 {[%clk 0:02:06]} 15. Bxe6 {[%clk 0:01:48]}  fxe6 {[%clk 0:02:04]} 16. Bc7 {[%clk 0:01:48]}  Nf6 {[%clk 0:01:56]} 17. Bxb6 {[%clk 0:01:44]}  Rb5 {[%clk 0:01:55]} 18. Bc7 {[%clk 0:01:45]}  Rxb2 {[%clk 0:01:55]} 19. O-O {[%clk 0:01:45]}  Kd7 {[%clk 0:01:53]} 20. Bg3 {[%clk 0:01:41]}  Bd6 {[%clk 0:01:53]} 21. Rfb1 {[%clk 0:01:40]}  Rxb1+ {[%clk 0:01:50]} 22. Rxb1 {[%clk 0:01:40]}  Bxg3 {[%clk 0:01:50]} 23. hxg3 {[%clk 0:01:40]}  Rb8 {[%clk 0:01:39]} 24. Kf1 {[%clk 0:01:37]}  b5 {[%clk 0:01:38]} 25. Ke2 {[%clk 0:01:35]}  Ne4 {[%clk 0:01:30]} 26. Rc1 {[%clk 0:01:32]}  b4 {[%clk 0:01:27]} 27. cxb4 {[%clk 0:01:26]}  Rxb4 {[%clk 0:01:26]} 28. Ke3 {[%clk 0:01:23]}  Nf6 {[%clk 0:01:20]} 29. Rc2 {[%clk 0:01:07]}  Ra4 {[%clk 0:01:13]} 30. Rb2 {[%clk 0:01:04]}  Ra3+ {[%clk 0:00:58]} 31. Kf4 {[%clk 0:01:00]}  Nd5+ {[%clk 0:00:52]} 32. Kg4 {[%clk 0:01:00]}  Kc7 {[%clk 0:00:49]} 33. Ng5 {[%clk 0:00:58]}  Nxd4 {[%clk 0:00:43]} 34. Nxh7 {[%clk 0:00:53]}  Nf6+ {[%clk 0:00:43]} 35. Nxf6 {[%clk 0:00:50]}  gxf6 {[%clk 0:00:43]} 36. f3 {[%clk 0:00:47]}  Kd6 {[%clk 0:00:43]} 37. Rd2 {[%clk 0:00:42]}  e5 {[%clk 0:00:41]} 38. Kh5 {[%clk 0:00:41]}  Kd5 {[%clk 0:00:39]} 39. g4 {[%clk 0:00:41]}  Ke6 {[%clk 0:00:36]} 40. g5 {[%clk 0:00:40]}  Ra7 {[%clk 0:00:29]} 41. gxf6 {[%clk 0:00:39]}  Kxf6 {[%clk 0:00:30]} 42. Kg4 {[%clk 0:00:37]}  Rg7+ {[%clk 0:00:27]} 43. Kh3 {[%clk 0:00:37]}  Kf5 {[%clk 0:00:25]} 44. a4 {[%clk 0:00:32]}  Kf4 {[%clk 0:00:25]} 45. Kh2 {[%clk 0:00:32]}  Ke3 {[%clk 0:00:16]} 46. Ra2 {[%clk 0:00:31]}  Ne2 {[%clk 0:00:16]} 47. Kh3 {[%clk 0:00:30]}  Nf4+ {[%clk 0:00:14]} 48. Kh2 {[%clk 0:00:30]}  Ne2 {[%clk 0:00:13]} 49. Kh3 {[%clk 0:00:29]}  Kf2 {[%clk 0:00:13]} 50. a5 {[%clk 0:00:26]}  Rg3+ {[%clk 0:00:12]} 51. Kh4 {[%clk 0:00:26]}  Rxg2 {[%clk 0:00:12]} 52. a6 {[%clk 0:00:26]}  Rg8 {[%clk 0:00:13]} 53. a7 {[%clk 0:00:27]}  Ra8 {[%clk 0:00:13]} 54. Ra5 {[%clk 0:00:27]}  Kxf3 {[%clk 0:00:10]} 55. Rxe5 {[%clk 0:00:27]}  Rxa7 {[%clk 0:00:11]} 56. Kg5 {[%clk 0:00:27]}  Nf4 {[%clk 0:00:10]} 57. Rb5 {[%clk 0:00:26]}  Rg7+ {[%clk 0:00:08]} 58. Kf6 {[%clk 0:00:26]}  Rg8 {[%clk 0:00:08]} 59. Rb4 {[%clk 0:00:25]}  Kg4 {[%clk 0:00:08]} 60. Ra4 {[%clk 0:00:24]}  Rg6+ {[%clk 0:00:08]} 61. Kf7 {[%clk 0:00:24]}  Rb6 {[%clk 0:00:09]} 62. Ra5 {[%clk 0:00:24]}  Nd3 {[%clk 0:00:07]} 63. Ra4+ {[%clk 0:00:23]}  Kf5 {[%clk 0:00:07]} 64. Ra5+ {[%clk 0:00:21]}  Ne5+ {[%clk 0:00:07]} 65. Ke7 {[%clk 0:00:21]}  Rb7+ {[%clk 0:00:04]} 66. Kd6 {[%clk 0:00:18]}  Rd7+ {[%clk 0:00:01]} 67. Kc5 {[%clk 0:00:17]}  Rc7+ {[%clk 0:00:02]} 68. Kd6 {[%clk 0:00:15]}  Rd7+ {[%clk 0:00:02]} 69. Kc5 {[%clk 0:00:15]}  Rc7+ {[%clk 0:00:02]} 70. Kd6 {[%clk 0:00:15]}  Rd7+ {[%clk 0:00:03]} 1/2-1/2


[Site "https://www.chess.com"]

[Event "Titled Tuesday Blitz August 22 Early 2023"]
[White "Pershina, Elena"]
[Black "Colas, Joshua"]
[WhiteFideId "24147516"]
[BlackFideId "2044447"]
[WhiteElo "2415"]
[BlackElo "2583"]
[Result "1-0"]
[Round "3"]
[TimeControl "180+1"]
[Date "2023.08.22"]
[WhiteClock "0:00:19"]
[BlackClock "0:00:12"]
[Board "137"]

1. c4 {[%clk 0:03:00]}  e5 {[%clk 0:02:53]} 2. Nc3 {[%clk 0:03:00]}  Nc6 {[%clk 0:02:44]} 3. g3 {[%clk 0:03:00]}  g6 {[%clk 0:02:43]} 4. Bg2 {[%clk 0:03:00]}  Bg7 {[%clk 0:02:41]} 5. e4 {[%clk 0:03:00]}  d6 {[%clk 0:02:40]} 6. Nge2 {[%clk 0:03:01]}  f5 {[%clk 0:02:40]} 7. d3 {[%clk 0:02:57]}  Nf6 {[%clk 0:02:40]} 8. Rb1 {[%clk 0:02:50]}  O-O {[%clk 0:02:30]} 9. O-O {[%clk 0:02:48]}  Be6 {[%clk 0:02:29]} 10. Nd5 {[%clk 0:02:46]}  Qd7 {[%clk 0:02:21]} 11. b4 {[%clk 0:02:41]}  f4 {[%clk 0:02:18]} 12. gxf4 {[%clk 0:02:35]}  Nh5 {[%clk 0:02:05]} 13. b5 {[%clk 0:02:23]}  Nd4 {[%clk 0:01:32]} 14. Nxd4 {[%clk 0:02:20]}  exd4 {[%clk 0:01:33]} 15. f5 {[%clk 0:02:15]}  Bxd5 {[%clk 0:01:27]} 16. cxd5 {[%clk 0:02:14]}  Be5 {[%clk 0:01:23]} 17. f4 {[%clk 0:02:04]}  Bg7 {[%clk 0:01:23]} 18. fxg6 {[%clk 0:02:00]}  hxg6 {[%clk 0:01:23]} 19. Bd2 {[%clk 0:01:53]}  Rf7 {[%clk 0:01:17]} 20. f5 {[%clk 0:01:51]}  Raf8 {[%clk 0:01:16]} 21. Qg4 {[%clk 0:01:44]}  Rf6 {[%clk 0:01:10]} 22. Bh3 {[%clk 0:01:32]}  Qf7 {[%clk 0:00:55]} 23. Bg5 {[%clk 0:01:17]}  gxf5 {[%clk 0:00:52]} 24. Rxf5 {[%clk 0:01:16]}  Rxf5 {[%clk 0:00:51]} 25. Qxf5 {[%clk 0:01:12]}  Qxf5 {[%clk 0:00:46]} 26. Bxf5 {[%clk 0:01:12]}  Be5 {[%clk 0:00:38]} 27. Rc1 {[%clk 0:01:06]}  Nf4 {[%clk 0:00:23]} 28. Bxf4 {[%clk 0:00:41]}  Bxf4 {[%clk 0:00:24]} 29. Rxc7 {[%clk 0:00:40]}  b6 {[%clk 0:00:19]} 30. Rxa7 {[%clk 0:00:40]}  Be5 {[%clk 0:00:16]} 31. Rb7 {[%clk 0:00:39]}  Ra8 {[%clk 0:00:14]} 32. Be6+ {[%clk 0:00:35]}  Kh8 {[%clk 0:00:13]} 33. Rxb6 {[%clk 0:00:31]}  Rxa2 {[%clk 0:00:13]} 34. Ra6 {[%clk 0:00:32]}  Rxh2 {[%clk 0:00:12]} 35. b6 {[%clk 0:00:28]}  Rb2 {[%clk 0:00:12]} 36. Bc8 {[%clk 0:00:26]}  Kg7 {[%clk 0:00:05]} 37. b7 {[%clk 0:00:26]}  Kf6 {[%clk 0:00:04]} 38. Ra8 {[%clk 0:00:26]}  Rb1+ {[%clk 0:00:03]} 39. Kg2 {[%clk 0:00:26]}  Rb2+ {[%clk 0:00:04]} 40. Kf3 {[%clk 0:00:26]}  Rb3 {[%clk 0:00:02]} 41. b8=Q {[%clk 0:00:26]}  Rxd3+ {[%clk 0:00:03]} 42. Ke2 {[%clk 0:00:25]}  Re3+ {[%clk 0:00:03]} 43. Kd2 {[%clk 0:00:26]}  Bf4 {[%clk 0:00:03]} 44. Kc2 {[%clk 0:00:24]}  Rc3+ {[%clk 0:00:03]} 45. Kb2 {[%clk 0:00:23]}  Bc1+ {[%clk 0:00:02]} 46. Ka2 {[%clk 0:00:23]}  d3 {[%clk 0:00:02]} 47. Qxd6+ {[%clk 0:00:22]}  Kg5 {[%clk 0:00:02]} 48. Qe5+ {[%clk 0:00:22]}  Kh4 {[%clk 0:00:01]} 49. Qxc3 {[%clk 0:00:22]}  d2 {[%clk 0:00:02]} 50. Qc2 {[%clk 0:00:22]}  Kg3 {[%clk 0:00:01]} 51. e5 {[%clk 0:00:22]}  Kf2 {[%clk 0:00:02]} 52. e6 {[%clk 0:00:21]}  Ke1 {[%clk 0:00:03]} 53. e7 {[%clk 0:00:19]}  d1=Q {[%clk 0:00:04]} 54. Qxd1+ {[%clk 0:00:19]}  Kxd1 {[%clk 0:00:04]} 55. e8=Q {[%clk 0:00:20]}  Bd2 {[%clk 0:00:05]} 56. d6 {[%clk 0:00:19]}  Kc2 {[%clk 0:00:06]} 57. d7 {[%clk 0:00:20]}  Bc3 {[%clk 0:00:07]} 58. d8=Q {[%clk 0:00:20]}  Bd4 {[%clk 0:00:08]} 59. Qc7+ {[%clk 0:00:20]}  Kd3 {[%clk 0:00:08]} 60. Qg6+ {[%clk 0:00:20]}  Kd2 {[%clk 0:00:08]} 61. Qcd6 {[%clk 0:00:20]}  Kc3 {[%clk 0:00:08]} 62. Qxd4+ {[%clk 0:00:20]}  Kxd4 {[%clk 0:00:07]} 63. Qg4+ {[%clk 0:00:20]}  Kc3 {[%clk 0:00:08]} 64. Ra3+ {[%clk 0:00:20]}  Kd2 {[%clk 0:00:09]} 65. Qg2+ {[%clk 0:00:20]}  Kd1 {[%clk 0:00:10]} 66. Rd3+ {[%clk 0:00:20]}  Kc1 {[%clk 0:00:11]} 67. Rc3+ {[%clk 0:00:20]}  Kd1 {[%clk 0:00:11]} 68. Bg4+ {[%clk 0:00:19]}  Ke1 {[%clk 0:00:12]} 69. Qe2# {[%clk 0:00:19]} 1-0


[Site "https://www.chess.com"]

[Event "Titled Tuesday Blitz August 22 Early 2023"]
[White "Romero Ruscalleda, Josep"]
[Black "Kazmin_Semyon"]
[WhiteFideId "2231859"]
[WhiteElo "2413"]
[BlackElo "2581"]
[Result "1-0"]
[Round "3"]
[TimeControl "180+1"]
[Date "2023.08.22"]
[WhiteClock "0:00:09"]
[BlackClock "0:00:00"]
[Board "138"]

1. e4 {[%clk 0:02:58]}  e5 {[%clk 0:02:55]} 2. Nf3 {[%clk 0:02:57]}  Nc6 {[%clk 0:02:55]} 3. Bc4 {[%clk 0:02:57]}  Bc5 {[%clk 0:02:54]} 4. c3 {[%clk 0:02:57]}  Nf6 {[%clk 0:02:53]} 5. d4 {[%clk 0:02:57]}  exd4 {[%clk 0:02:54]} 6. e5 {[%clk 0:02:57]}  d5 {[%clk 0:02:54]} 7. Bb5 {[%clk 0:02:57]}  Ne4 {[%clk 0:02:54]} 8. Nxd4 {[%clk 0:02:57]}  Bd7 {[%clk 0:02:53]} 9. Bxc6 {[%clk 0:02:57]}  bxc6 {[%clk 0:02:54]} 10. O-O {[%clk 0:02:57]}  O-O {[%clk 0:02:54]} 11. Be3 {[%clk 0:02:56]}  Re8 {[%clk 0:02:52]} 12. f3 {[%clk 0:02:53]}  Ng5 {[%clk 0:02:52]} 13. f4 {[%clk 0:02:53]}  Ne4 {[%clk 0:02:52]} 14. Nd2 {[%clk 0:02:53]}  Nxd2 {[%clk 0:02:48]} 15. Qxd2 {[%clk 0:02:53]}  Bb6 {[%clk 0:02:48]} 16. a4 {[%clk 0:02:46]}  a5 {[%clk 0:02:47]} 17. Nb3 {[%clk 0:02:42]}  Bf5 {[%clk 0:02:40]} 18. Nc5 {[%clk 0:02:34]}  Qe7 {[%clk 0:02:40]} 19. b4 {[%clk 0:02:31]}  Bxc5 {[%clk 0:02:33]} 20. Bxc5 {[%clk 0:02:29]}  Qh4 {[%clk 0:02:33]} 21. Rf3 {[%clk 0:02:16]}  Re6 {[%clk 0:02:31]} 22. Bf2 {[%clk 0:01:59]}  Qh5 {[%clk 0:02:31]} 23. Bg3 {[%clk 0:01:48]}  Be4 {[%clk 0:02:24]} 24. Rf2 {[%clk 0:01:46]}  Qg4 {[%clk 0:02:23]} 25. Qd4 {[%clk 0:01:45]}  h5 {[%clk 0:02:19]} 26. f5 {[%clk 0:01:34]}  Bxf5 {[%clk 0:02:17]} 27. Rf4 {[%clk 0:01:32]}  Qg6 {[%clk 0:02:18]} 28. Raf1 {[%clk 0:01:30]}  Bd3 {[%clk 0:02:13]} 29. R1f2 {[%clk 0:01:20]}  Re7 {[%clk 0:02:08]} 30. Bh4 {[%clk 0:01:15]}  Rd7 {[%clk 0:02:07]} 31. R4f3 {[%clk 0:01:02]}  Be4 {[%clk 0:02:06]} 32. Rg3 {[%clk 0:01:01]}  Qh7 {[%clk 0:01:57]} 33. Bf6 {[%clk 0:00:55]}  Bg6 {[%clk 0:01:57]} 34. Bh4 {[%clk 0:00:48]}  axb4 {[%clk 0:01:35]} 35. Qxb4 {[%clk 0:00:47]}  Bf5 {[%clk 0:01:29]} 36. Qb7 {[%clk 0:00:36]}  Re8 {[%clk 0:01:25]} 37. Qxc6 {[%clk 0:00:32]}  d4 {[%clk 0:01:16]} 38. cxd4 {[%clk 0:00:30]}  Be6 {[%clk 0:01:03]} 39. Bf6 {[%clk 0:00:26]}  g6 {[%clk 0:01:00]} 40. a5 {[%clk 0:00:24]}  Qh6 {[%clk 0:00:55]} 41. a6 {[%clk 0:00:22]}  Kh7 {[%clk 0:00:36]} 42. a7 {[%clk 0:00:20]}  Rxd4 {[%clk 0:00:35]} 43. h3 {[%clk 0:00:17]}  Rd1+ {[%clk 0:00:28]} 44. Kh2 {[%clk 0:00:17]}  Qc1 {[%clk 0:00:29]} 45. Qxc1 {[%clk 0:00:14]}  Rxc1 {[%clk 0:00:30]} 46. Ra3 {[%clk 0:00:13]}  Ra8 {[%clk 0:00:21]} 47. Rd2 {[%clk 0:00:13]}  Bf5 {[%clk 0:00:15]} 48. Rd8 {[%clk 0:00:13]}  Be4 {[%clk 0:00:15]} 49. Rxa8 {[%clk 0:00:07]}  Bxa8 {[%clk 0:00:15]} 50. Rb3 {[%clk 0:00:07]}  Rc2 {[%clk 0:00:14]} 51. Kg1 {[%clk 0:00:07]}  Rxg2+ {[%clk 0:00:10]} 52. Kf1 {[%clk 0:00:07]}  g5 {[%clk 0:00:06]} 53. Rb8 {[%clk 0:00:07]}  Be4 {[%clk 0:00:05]} 54. a8=Q {[%clk 0:00:06]}  Bxa8 {[%clk 0:00:05]} 55. Rxa8 {[%clk 0:00:07]}  Rg3 {[%clk 0:00:05]} 56. Rc8 {[%clk 0:00:06]}  Rxh3 {[%clk 0:00:04]} 57. Bxg5 {[%clk 0:00:06]}  Kg6 {[%clk 0:00:05]} 58. Bf6 {[%clk 0:00:06]}  Rc3 {[%clk 0:00:04]} 59. Ke2 {[%clk 0:00:05]}  Kf5 {[%clk 0:00:04]} 60. Kd2 {[%clk 0:00:04]}  Rc6 {[%clk 0:00:02]} 61. Rh8 {[%clk 0:00:04]}  Kg4 {[%clk 0:00:01]} 62. Rg8+ {[%clk 0:00:04]}  Kf4 {[%clk 0:00:02]} 63. Rg7 {[%clk 0:00:04]}  Ra6 {[%clk 0:00:01]} 64. Rxf7 {[%clk 0:00:04]}  Kf5 {[%clk 0:00:02]} 65. Rh7 {[%clk 0:00:04]}  Ra2+ {[%clk 0:00:01]} 66. Kc3 {[%clk 0:00:04]}  Ra3+ {[%clk 0:00:01]} 67. Kb4 {[%clk 0:00:03]}  Rh3 {[%clk 0:00:02]} 68. Rxc7 {[%clk 0:00:03]}  Ke6 {[%clk 0:00:03]} 69. Rh7 {[%clk 0:00:03]}  Rh1 {[%clk 0:00:02]} 70. Rh8 {[%clk 0:00:04]}  Kd5 {[%clk 0:00:02]} 71. Kc3 {[%clk 0:00:05]}  Rh3+ {[%clk 0:00:01]} 72. Kd2 {[%clk 0:00:06]}  Ke6 {[%clk 0:00:02]} 73. Ke2 {[%clk 0:00:06]}  Rh1 {[%clk 0:00:02]} 74. Kf2 {[%clk 0:00:07]}  Rh3 {[%clk 0:00:03]} 75. Kg2 {[%clk 0:00:07]}  Ra3 {[%clk 0:00:03]} 76. Rxh5 {[%clk 0:00:06]}  Kf7 {[%clk 0:00:04]} 77. Rh7+ {[%clk 0:00:06]}  Ke6 {[%clk 0:00:05]} 78. Re7+ {[%clk 0:00:07]}  Kf5 {[%clk 0:00:06]} 79. Kf2 {[%clk 0:00:07]}  Kg6 {[%clk 0:00:05]} 80. Ke2 {[%clk 0:00:08]}  Kf5 {[%clk 0:00:06]} 81. Kd2 {[%clk 0:00:08]}  Ke4 {[%clk 0:00:05]} 82. Kc2 {[%clk 0:00:09]}  Kf5 {[%clk 0:00:05]} 83. Kb2 {[%clk 0:00:09]}  Rh3 {[%clk 0:00:06]} 84. Rg7 {[%clk 0:00:08]}  Ke6 {[%clk 0:00:06]} 85. Rg4 {[%clk 0:00:08]}  Rf3 {[%clk 0:00:05]} 86. Rh4 {[%clk 0:00:08]}  Kf5 {[%clk 0:00:05]} 87. Kc2 {[%clk 0:00:08]}  Ke6 {[%clk 0:00:06]} 88. Kd2 {[%clk 0:00:09]}  Ra3 {[%clk 0:00:06]} 89. Ke2 {[%clk 0:00:09]}  Kf5 {[%clk 0:00:06]} 90. Rd4 {[%clk 0:00:09]}  Ra2+ {[%clk 0:00:04]} 91. Rd2 {[%clk 0:00:09]}  Ra3 {[%clk 0:00:04]} 92. Rd3 {[%clk 0:00:09]}  Ra4 {[%clk 0:00:05]} 93. Ke3 {[%clk 0:00:10]}  Ke6 {[%clk 0:00:05]} 94. Rd4 {[%clk 0:00:10]}  Ra1 {[%clk 0:00:05]} 95. Rd6+ {[%clk 0:00:09]}  Kf5 {[%clk 0:00:05]} 96. Bg7 {[%clk 0:00:09]}  Ra4 {[%clk 0:00:03]} 97. Rd4 {[%clk 0:00:09]}  Ra3+ {[%clk 0:00:03]} 98. Kd2 {[%clk 0:00:09]}  Ke6 {[%clk 0:00:03]} 99. Rd6+ {[%clk 0:00:08]}  Kf5 {[%clk 0:00:04]} 100. Bf6 {[%clk 0:00:08]}  Rh3 {[%clk 0:00:03]} 101. Rd3 {[%clk 0:00:08]}  Rh2+ {[%clk 0:00:02]} 102. Kc3 {[%clk 0:00:09]}  Rh4 {[%clk 0:00:01]} 103. Rd4 {[%clk 0:00:08]}  Rh1 {[%clk 0:00:01]} 104. Kc4 {[%clk 0:00:09]}  Ke6 {[%clk 0:00:01]} 105. Kc5 {[%clk 0:00:09]}  Rc1+ {[%clk 0:00:01]} 106. Rc4 {[%clk 0:00:09]}  Ra1 {[%clk 0:00:01]} 107. Kc6 {[%clk 0:00:09]}  Ra8 {[%clk 0:00:02]} 108. Kc7 {[%clk 0:00:09]}  Ra5 {[%clk 0:00:01]} 109. Rd4 {[%clk 0:00:09]}  Kf7 {[%clk 0:00:02]} 110. Rd7+ {[%clk 0:00:09]}  Ke6 {[%clk 0:00:02]} 111. Re7+ {[%clk 0:00:09]}  Kd5 {[%clk 0:00:02]} 112. e6 {[%clk 0:00:09]}  Ra7+ {[%clk 0:00:02]} 113. Kd8 {[%clk 0:00:09]}  Ra6 {[%clk 0:00:01]} 114. Kd7 {[%clk 0:00:09]}  Ra7+ {[%clk 0:00:01]} 115. Ke8 {[%clk 0:00:09]}  Ra6 {[%clk 0:00:00]} 116. Kf7 {[%clk 0:00:09]} 1-0


[Site "https://www.chess.com"]